fUSD/lending_fUSD_20250506
["ID","MTS","AMOUNT","RATE_DAILY","PERIOD"]
[360130562,1746561047015,-450.0,0.00019899,2]
[360130564,1746561047024,-450.0,0.00019899,2]
[360130566,1746561047033,-450.0,0.00019899,2]
[360130568,1746561047043,-450.0,0.00019899,2]
[360130570,1746561047052,-450.0,0.00019899,2]
[360130572,1746561047062,-450.0,0.00019899,2]
[360130574,1746561047071,-1753.07,0.00019899,2]
[360130576,1746561047080,-1753.07,0.00019899,2]
[360130578,1746561047089,-450.0,0.00019899,2]
[360130580,1746561047098,-450.0,0.00019899,2]
[360130582,1746561047107,-250.53,0.00019899,2]
[360130584,1746561047116,-450.0,0.00019899,2]
[360130586,1746561047126,-450.0,0.00019899,2]
[360130588,1746561047135,-936.68,0.00019899,2]
[360130590,1746561047145,-936.68,0.00019899,2]
[360130592,1746561047155,-450.0,0.00019899,2]
[360130594,1746561047164,-450.0,0.00019899,2]
[360130596,1746561047174,-450.0,0.00019899,2]
[360130598,1746561047183,-450.0,0.00019899,2]
[360130600,1746561047192,-148661.47996962,0.00019899,2]
[360130601,1746561047201,-607.0,0.000199,2]
[360130603,1746561047211,-151.0,0.000199,2]
[360130605,1746561047220,-397.602981,0.000199,2]
[360130607,1746561047230,-397.602981,0.000199,2]
[360130609,1746561047240,-151.0,0.000199,2]
[360130611,1746561047250,-151.0,0.000199,2]
[360130613,1746561047259,-151.0,0.000199,2]
[360130615,1746561047269,-194.836868,0.000199,2]
[360130617,1746561047278,-194.836868,0.000199,2]
[360130619,1746561047288,-269.347023,0.000199,2]
[360130621,1746561047300,-269.347023,0.000199,2]
[360130624,1746561047310,-151.0,0.000199,2]
[360130626,1746561047320,-151.0,0.000199,2]
[360130628,1746561047329,-199.249697,0.000199,2]
[360130630,1746561047338,-199.249697,0.000199,2]
[360130631,1746561047347,-151.0,0.000199,2]
[360130634,1746561047357,-241.849428,0.000199,2]
[360130635,1746561047368,-241.849428,0.000199,2]
[360130637,1746561047378,-151.0,0.000199,2]
[360130639,1746561047387,-151.0,0.000199,2]
[360130641,1746561047396,-151.0,0.000199,2]
[360130643,1746561047406,-12500.0,0.000199,2]
[360130645,1746561047415,-151.0,0.000199,2]
[360130647,1746561047425,-151.0,0.000199,2]
[360130649,1746561047434,-151.0,0.000199,2]
[360130652,1746561047444,-170.591363,0.000199,2]
[360130654,1746561047455,-836.260483,0.000199,2]
[360130656,1746561047466,-836.260483,0.000199,2]
[360130658,1746561047474,-225.54367,0.000199,2]
[360130660,1746561047484,-151.0,0.000199,2]
[360130662,1746561047493,-225.54367,0.000199,2]
[360130664,1746561047502,-151.0,0.000199,2]
[360130666,1746561047512,-1513.9693123,0.000199,2]
[360130668,1746561047522,-151.0,0.000199,2]
[360130670,1746561047533,-151.0,0.000199,2]
[360130672,1746561047544,-316.658111,0.000199,2]
[360130674,1746561047554,-316.658111,0.000199,2]
[360130676,1746561047564,-233.817203,0.000199,2]
[360130678,1746561047575,-233.817203,0.000199,2]
[360130680,1746561047585,-151.0,0.000199,2]
[360130682,1746561047594,-151.0,0.000199,2]
[360130684,1746561047603,-151.0,0.000199,2]
[360130685,1746561047616,-470.567646,0.000199,2]
[360130687,1746561047626,-470.567646,0.000199,2]
[360130689,1746561047635,-151.0,0.000199,2]
[360130692,1746561047646,-151.0,0.000199,2]
[360130694,1746561047655,-334.054766,0.000199,2]
[360130695,1746561047663,-334.054766,0.000199,2]
[360130696,1746561047673,-175.46623358,0.000199,2]
[360130697,1746561047684,-768.369716,0.000199,2]
[360130698,1746561047694,-349.572559,0.000199,2]
[360130699,1746561047703,-768.369716,0.000199,2]
[360130700,1746561047713,-349.572559,0.000199,2]
[360130701,1746561047722,-151.0,0.000199,2]
[360130702,1746561047731,-160.168878,0.000199,2]
[360130703,1746561047741,-160.168878,0.000199,2]
[360130704,1746561047750,-3325.292,0.000199,2]
[360130705,1746561047759,-190.662,0.000199,2]
[360130707,1746561047768,-151.0,0.000199,2]
[360130708,1746561047777,-4124.31160776,0.000199,2]
[360130710,1746561047786,-179.655252,0.000199,2]
[360130712,1746561047795,-179.655252,0.000199,2]
[360130715,1746561047806,-202.398437,0.000199,2]
[360130716,1746561047816,-202.398437,0.000199,2]
[360130718,1746561047825,-151.0,0.000199,2]
[360130720,1746561047834,-228.542599,0.000199,2]
[360130722,1746561047843,-294.025246,0.000199,2]
[360130724,1746561047852,-228.542599,0.000199,2]
[360130726,1746561047861,-1376.708855,0.000199,2]
[360130728,1746561047870,-1376.708855,0.000199,2]
[360130730,1746561047879,-151.0,0.000199,2]
[360130732,1746561047888,-658.952933,0.000199,2]
[360130734,1746561047898,-658.952933,0.000199,2]
[360130736,1746561047907,-658.952933,0.000199,2]
[360130738,1746561047917,-658.952933,0.000199,2]
[360130740,1746561047926,-161.414771,0.000199,2]
[360130741,1746561047935,-151.32664,0.000199,2]
[360130742,1746561047944,-803.325325,0.000199,2]
[360130743,1746561047953,-803.325325,0.000199,2]
[360130744,1746561047962,-803.325325,0.000199,2]
[360130745,1746561047971,-803.325325,0.000199,2]
[360130746,1746561047981,-499.8982,0.000199,2]
[360130747,1746561047991,-499.8982,0.000199,2]
[360130748,1746561048000,-151.0,0.000199,2]
[360130750,1746561048010,-151.0,0.000199,2]
[360130752,1746561048020,-694.452628,0.000199,2]
[360130753,1746561048030,-151.0,0.000199,2]
[360130754,1746561048039,-694.452628,0.000199,2]
[360130755,1746561048050,-151.0,0.000199,2]
[360130756,1746561048059,-151.0,0.000199,2]
[360130757,1746561048069,-151.0,0.000199,2]
[360130758,1746561048079,-151.0,0.000199,2]
[360130759,1746561048089,-151.0,0.000199,2]
[360130760,1746561048099,-151.0,0.000199,2]
[360130761,1746561048109,-266.032829,0.000199,2]
[360130762,1746561048118,-266.032829,0.000199,2]
[360130763,1746561048128,-151.0,0.000199,2]
[360130764,1746561048139,-151.0,0.000199,2]
[360130765,1746561048148,-151.0,0.000199,2]
[360130766,1746561048158,-321.85112706,0.000199,2]
[360130767,1746561048167,-151.0,0.000199,2]
[360130768,1746561048178,-151.0,0.000199,2]
[360130769,1746561048188,-151.0,0.000199,2]
[360130770,1746561048197,-172.36899397,0.000199,2]
[360130771,1746561048207,-151.0,0.000199,2]
[360130772,1746561048216,-151.0,0.000199,2]
[360130773,1746561048226,-151.0,0.000199,2]
[360130774,1746561048235,-151.0,0.000199,2]
[360130775,1746561048244,-151.0,0.000199,2]
[360130776,1746561048254,-151.0,0.000199,2]
[360130777,1746561048264,-331914.56757776,0.000199,2]
[360130778,1746561048273,-151.0,0.000199,2]
[360130779,1746561048282,-151.0,0.000199,2]
[360130780,1746561048291,-151.0,0.000199,2]
[360130781,1746561048300,-151.0,0.000199,2]
[360130782,1746561048310,-151.0,0.000199,2]
[360130783,1746561048319,-154.048022,0.000199,2]
[360130784,1746561048329,-151.0,0.000199,2]
[360130785,1746561048338,-151.0,0.000199,2]
[360130786,1746561048347,-151.0,0.000199,2]
[360130787,1746561048357,-151.0,0.000199,2]
[360130788,1746561048367,-286.412312,0.000199,2]
[360130789,1746561048377,-286.412312,0.000199,2]
[360130790,1746561048386,-151.0,0.000199,2]
[360130791,1746561048397,-286.412312,0.000199,2]
[360130792,1746561048406,-286.412312,0.000199,2]
[360130793,1746561048416,-151.0,0.000199,2]
[360130794,1746561048425,-151.0,0.000199,2]
[360130795,1746561048434,-151.0,0.000199,2]
[360130796,1746561048443,-1318.30038,0.000199,2]
[360130797,1746561048452,-1318.30038,0.000199,2]
[360130798,1746561048461,-157.25113635,0.000199,3]
[360130799,1746561048471,-151.0,0.000199,2]
[360130800,1746561048481,-151.0,0.000199,2]
[360130801,1746561048491,-1318.30038,0.000199,2]
[360130802,1746561048500,-151.0,0.000199,2]
[360130803,1746561048509,-1318.30038,0.000199,2]
[360130804,1746561048521,-253.924162,0.000199,2]
[360130805,1746561048532,-253.924162,0.000199,2]
[360130806,1746561048546,-253.924162,0.000199,2]
[360130807,1746561048556,-253.924162,0.000199,2]
[360130808,1746561048566,-151.0,0.000199,2]
[360130809,1746561048577,-151.0,0.000199,2]
[360130810,1746561048587,-189.95194323,0.000199,2]
[360130811,1746561048596,-151.0,0.000199,2]
[360130812,1746561048607,-151.0,0.000199,2]
[360130813,1746561048619,-150.0,0.00019918,7]
[360130814,1746561048629,-500.0,0.00019918,2]
[360130815,1746561048638,-151.0,0.00019919,7]
[360130816,1746561048648,-151.0,0.00019919,7]
[360130817,1746561048657,-151.0,0.00019919,7]
[360130818,1746561048668,-151.0,0.00019919,7]
[360130819,1746561048677,-151.0,0.00019919,7]
[360130820,1746561048687,-151.0,0.00019919,7]
[360130821,1746561048697,-151.0,0.00019919,7]
[360130822,1746561048709,-151.0,0.00019919,7]
[360130823,1746561048719,-151.0,0.00019919,7]
[360130824,1746561048729,-151.0,0.00019919,7]
[360130825,1746561048739,-151.0,0.00019919,7]
[360130826,1746561048749,-151.0,0.00019919,7]
[360130827,1746561048759,-151.0,0.00019919,7]
[360130828,1746561048768,-151.0,0.00019919,7]
[360130829,1746561048777,-450.0,0.00019934,2]
[360130830,1746561048787,-528.54,0.00019934,2]
[360130831,1746561048797,-450.0,0.00019934,2]
[360130832,1746561048807,-450.0,0.00019934,2]
[360130833,1746561048816,-789.97,0.00019934,2]
[360130834,1746561048826,-450.0,0.00019934,2]
[360130835,1746561048836,-450.0,0.00019934,2]
[360130836,1746561048846,-531.48,0.00019934,2]
[360130837,1746561048855,-174.17940977,0.00019934,2]
[360130838,1746561048865,-1415.25,0.00019934,2]
[360130839,1746561048874,-450.0,0.00019934,2]
[360130840,1746561048883,-528.24282259,0.00019934,2]
[360130841,1746561048893,-5292.02,0.00019934,2]
[360130842,1746561048903,-321.3,0.00019934,2]
[360130843,1746561048913,-450.0,0.00019934,2]
[360130844,1746561048923,-359.2,0.00019934,2]
[360130845,1746561048933,-150.0,0.00019954,2]
[360130846,1746561048941,-500.0,0.00019973,2]
[360130847,1746561048951,-500.0,0.00019973,2]
[360130848,1746561048961,-500.0,0.00019973,2]
[360130849,1746561048970,-500.0,0.00019973,2]
[360130850,1746561048980,-501.93748199,0.00019973,2]
[360130851,1746561048989,-500.89911374,0.00019973,2]
[360130852,1746561048999,-500.0,0.00019973,2]
[360130853,1746561049173,-503.85916262,0.00019973,2]
[360130854,1746561049184,-500.0,0.00019973,2]
[360130855,1746561049194,-500.0,0.00019973,2]
[360130856,1746561049204,-500.0,0.00019973,2]
[360130857,1746561049214,-500.0,0.00019973,2]
[360130858,1746561049224,-500.0,0.00019973,2]
[360130859,1746561049233,-500.0,0.00019973,2]
[360130860,1746561049243,-500.0,0.00019973,2]
[360130861,1746561049253,-500.0,0.00019973,2]
[360130862,1746561049263,-500.0,0.00019973,2]
[360130863,1746561049273,-225.360083,0.00019979,2]
[360130864,1746561049282,-225.360083,0.00019979,2]
[360130865,1746561049291,-450.0,0.00019979,2]
[360130866,1746561049302,-28054.73,0.00019979,2]
[360130867,1746561049312,-450.0,0.00019979,2]
[360130868,1746561049321,-450.0,0.00019979,2]
[360130869,1746561049331,-450.0,0.00019979,2]
[360130870,1746561049340,-450.0,0.00019979,2]
[360130871,1746561049350,-887.07,0.00019979,2]
[360130872,1746561049360,-450.0,0.00019979,2]
[360130873,1746561049370,-450.0,0.00019979,2]
[360130874,1746561049379,-450.0,0.00019979,2]
[360130875,1746561049389,-450.0,0.00019979,2]
[360130876,1746561049400,-450.0,0.00019979,2]
[360130877,1746561049411,-450.0,0.00019979,2]
[360130878,1746561049420,-450.0,0.00019979,2]
[360130879,1746561049429,-450.0,0.00019979,2]
[360130881,1746561049439,-450.0,0.00019979,2]
[360130882,1746561049448,-573.85,0.00019979,2]
[360130883,1746561049457,-1522.52,0.00019979,2]
[360130884,1746561049467,-1753.07,0.00019979,2]
[360130885,1746561049476,-936.68,0.00019979,2]
[360130886,1746561049486,-258.72,0.0001998,2]
[360130887,1746561049495,-450.0,0.0001998,2]
[360130888,1746561049505,-450.0,0.0001998,2]
[360130889,1746561049514,-450.0,0.0001998,2]
[360130890,1746561049523,-638.1,0.0001998,2]
[360130891,1746561049533,-450.0,0.0001998,2]
[360130892,1746561049546,-450.0,0.0001998,2]
[360130893,1746561049555,-520.51,0.0001998,2]
[360130894,1746561049565,-151.0,0.00019982,2]
[360130895,1746561049574,-151.0,0.00019982,2]
[360130896,1746561049585,-450.0,0.00019983,2]
[360130897,1746561049595,-851.92,0.00019983,2]
[360130898,1746561049604,-450.0,0.00019983,2]
[360130899,1746561049613,-15871.77,0.00019983,2]
[360130900,1746561049623,-450.0,0.00019983,2]
[360130901,1746561049633,-1623.42,0.00019983,2]
[360130902,1746561049644,-6757.85,0.00019983,2]
[360130903,1746561049654,-484.24,0.00019983,2]
[360130904,1746561049663,-815.48,0.00019983,2]
[360130905,1746561049673,-4042.47,0.00019983,2]
[360130906,1746561049683,-500.0,0.00019983,2]
[360130907,1746561049692,-450.0,0.00019983,2]
[360130908,1746561049702,-542.28,0.00019983,2]
[360130909,1746561049712,-450.0,0.00019983,2]
[360130910,1746561049722,-450.0,0.00019983,2]
[360130911,1746561049731,-377.97,0.00019983,2]
[360130912,1746561049741,-450.0,0.00019983,2]
[360130913,1746561049750,-450.0,0.00019983,2]
[360130914,1746561049760,-450.0,0.00019983,2]
[360130915,1746561049769,-450.0,0.00019983,2]
[360130916,1746561049778,-530.97,0.00019983,2]
[360130917,1746561049788,-450.0,0.00019983,2]
[360130918,1746561049797,-450.0,0.00019983,2]
[360130919,1746561049806,-450.0,0.00019983,2]
[360130920,1746561049816,-450.0,0.00019983,2]
[360130921,1746561049825,-151.0,0.00019984,2]
[360130922,1746561049834,-151.0,0.00019984,2]
[360130923,1746561049843,-768.369716,0.00019984,2]
[360130924,1746561049854,-349.572559,0.00019984,2]
[360130925,1746561049864,-768.369716,0.00019984,2]
[360130926,1746561049873,-349.572559,0.00019984,2]
[360130927,1746561049883,-151.0,0.00019984,2]
[360130928,1746561049892,-160.168878,0.00019984,2]
[360130929,1746561049902,-160.168878,0.00019984,2]
[360130930,1746561049911,-151.0,0.00019984,2]
[360130931,1746561049920,-179.655252,0.00019984,2]
[360130932,1746561049929,-179.655252,0.00019984,2]
[360130933,1746561049939,-151.0,0.00019984,2]
[360130934,1746561049949,-228.542599,0.00019984,2]
[360130935,1746561049958,-228.542599,0.00019984,2]
[360130936,1746561049967,-1376.708855,0.00019984,2]
[360130937,1746561049976,-1376.708855,0.00019984,2]
[360130938,1746561049986,-658.952933,0.00019984,2]
[360130939,1746561049995,-658.952933,0.00019984,2]
[360130940,1746561050004,-803.325325,0.00019984,2]
[360130941,1746561050014,-803.325325,0.00019984,2]
[360130942,1746561050023,-5605.4394812,0.00019984,2]
[360130943,1746561050032,-499.8982,0.00019984,2]
[360130944,1746561050041,-499.8982,0.00019984,2]
[360130945,1746561050050,-151.0,0.00019984,2]
[360130946,1746561050059,-694.452628,0.00019984,2]
[360130947,1746561050068,-151.0,0.00019984,2]
[360130948,1746561050078,-694.452628,0.00019984,2]
[360130949,1746561050087,-53566.1839995,0.00019984,2]
[360130950,1746561050096,-151.0,0.00019984,2]
[360130951,1746561050105,-151.0,0.00019984,2]
[360130952,1746561050115,-266.032829,0.00019984,2]
[360130953,1746561050125,-266.032829,0.00019984,2]
[360130954,1746561050135,-151.0,0.00019984,2]
[360130955,1746561050144,-298.83,0.00019984,2]
[360130956,1746561050156,-151.0,0.00019984,2]
[360130957,1746561050166,-151.0,0.00019984,2]
[360130958,1746561050176,-151.0,0.00019984,2]
[360130959,1746561050186,-528.54,0.00019984,2]
[360130960,1746561050195,-151.0,0.00019984,2]
[360130961,1746561050205,-450.0,0.00019984,2]
[360130962,1746561050214,-450.0,0.00019984,2]
[360130963,1746561050224,-789.97,0.00019984,2]
[360130964,1746561050234,-450.0,0.00019984,2]
[360130965,1746561050243,-452.46904925,0.00019984,2]
[360130966,1746561050252,-531.48,0.00019984,2]
[360130967,1746561050262,-151.0,0.00019984,2]
[360130968,1746561050272,-151.0,0.00019984,2]
[360130969,1746561050282,-2519.6795112,0.00019984,2]
[360130970,1746561050292,-1415.25,0.00019984,2]
[360130971,1746561050302,-450.0,0.00019984,2]
[360130972,1746561050312,-151.0,0.00019984,2]
[360130973,1746561050321,-2002.02772117,0.00019984,2]
[360130974,1746561050330,-151.0,0.00019984,2]
[360130975,1746561050340,-286.412312,0.00019984,2]
[360130976,1746561050349,-151.0,0.00019984,2]
[360130977,1746561050359,-286.412312,0.00019984,2]
[360130978,1746561050369,-5292.02,0.00019984,2]
[360130979,1746561050378,-151.0,0.00019984,2]
[360130980,1746561050388,-1318.30038,0.00019984,2]
[360130981,1746561050400,-151.0,0.00019984,2]
[360130982,1746561050409,-1318.30038,0.00019984,2]
[360130983,1746561050419,-253.924162,0.00019984,2]
[360130984,1746561050429,-253.924162,0.00019984,2]
[360130985,1746561050438,-450.0,0.00019984,2]
[360130986,1746561050448,-151.0,0.00019984,2]
[360130987,1746561050459,-151.0,0.00019984,2]
[360130988,1746561050468,-450.0,0.00019985,2]
[360130989,1746561050478,-450.0,0.00019985,2]
[360130990,1746561050488,-450.0,0.00019985,2]
[360130991,1746561050497,-385.88,0.00019985,2]
[360130992,1746561050506,-450.0,0.00019985,2]
[360130993,1746561050516,-515.8,0.00019985,2]
[360130994,1746561050525,-450.0,0.00019985,2]
[360130995,1746561050534,-450.0,0.00019985,2]
[360130996,1746561050548,-538.54,0.00019985,2]
[360130997,1746561050557,-450.0,0.00019985,2]
[360130998,1746561050566,-450.0,0.00019985,2]
[360130999,1746561050576,-450.0,0.00019985,2]
[360131000,1746561050586,-450.0,0.00019985,2]
[360131001,1746561050596,-450.0,0.00019985,2]
[360131002,1746561050606,-450.0,0.00019985,2]
[360131003,1746561050616,-851.92,0.00019985,2]
[360131004,1746561050625,-851.92,0.00019985,2]
[360131005,1746561050635,-528.54,0.00019985,2]
[360131006,1746561050644,-450.0,0.00019985,2]
[360131007,1746561050655,-15871.77,0.00019985,2]
[360131008,1746561050664,-15871.77,0.00019985,2]
[360131009,1746561050674,-450.0,0.00019985,2]
[360131010,1746561050685,-450.0,0.00019985,2]
[360131011,1746561050694,-450.0,0.00019985,2]
[360131012,1746561050703,-1623.42,0.00019985,2]
[360131013,1746561050713,-1623.42,0.00019985,2]
[360131014,1746561050722,-28054.73,0.00019985,2]
[360131015,1746561050732,-28054.73,0.00019985,2]
[360131016,1746561050741,-450.0,0.00019985,2]
[360131017,1746561050751,-6757.85,0.00019985,2]
[360131018,1746561050760,-6757.85,0.00019985,2]
[360131019,1746561050770,-450.0,0.00019985,2]
[360131020,1746561050779,-450.0,0.00019985,2]
[360131021,1746561050788,-484.24,0.00019985,2]
[360131022,1746561050797,-484.24,0.00019985,2]
[360131023,1746561050807,-450.0,0.00019985,2]
[360131024,1746561050817,-450.0,0.00019985,2]
[360131025,1746561050827,-815.48,0.00019985,2]
[360131026,1746561050836,-815.48,0.00019985,2]
[360131027,1746561050845,-789.97,0.00019985,2]
[360131028,1746561050855,-450.0,0.00019985,2]
[360131029,1746561050864,-4042.47,0.00019985,2]
[360131030,1746561050873,-4042.47,0.00019985,2]
[360131031,1746561050883,-450.0,0.00019985,2]
[360131032,1746561050892,-450.0,0.00019985,2]
[360131033,1746561050902,-375.39572774,0.00019985,2]
[360131034,1746561050912,-450.0,0.00019985,2]
[360131035,1746561050921,-532.03,0.00019985,2]
[360131036,1746561050930,-450.0,0.00019985,2]
[360131037,1746561050940,-450.0,0.00019985,2]
[360131038,1746561050949,-531.48,0.00019985,2]
[360131039,1746561050958,-500.0,0.00019985,2]
[360131040,1746561050967,-500.0,0.00019985,2]
[360131041,1746561050976,-450.0,0.00019985,2]
[360131042,1746561050986,-450.0,0.00019985,2]
[360131043,1746561050996,-887.07,0.00019985,2]
[360131044,1746561051006,-542.28,0.00019985,2]
[360131045,1746561051017,-887.07,0.00019985,2]
[360131046,1746561051027,-542.28,0.00019985,2]
[360131047,1746561051036,-450.0,0.00019985,2]
[360131048,1746561051045,-450.0,0.00019985,2]
[360131049,1746561051055,-450.0,0.00019985,2]
[360131050,1746561051064,-450.0,0.00019985,2]
[360131051,1746561051073,-532.67,0.00019985,2]
[360131052,1746561051083,-1415.25,0.00019985,2]
[360131053,1746561051092,-450.0,0.00019985,2]
[360131054,1746561051101,-450.0,0.00019985,2]
[360131055,1746561051111,-450.0,0.00019985,2]
[360131056,1746561051120,-450.0,0.00019985,2]
[360131057,1746561051129,-450.0,0.00019985,2]
[360131058,1746561051139,-450.0,0.00019985,2]
[360131059,1746561051149,-450.0,0.00019985,2]
[360131060,1746561051158,-450.0,0.00019985,2]
[360131061,1746561051167,-453.28,0.00019985,2]
[360131062,1746561051177,-598.32,0.00019985,2]
[360131063,1746561051186,-506.54,0.00019985,2]
[360131064,1746561051196,-450.0,0.00019985,2]
[360131065,1746561051205,-450.0,0.00019985,2]
[360131066,1746561051215,-450.0,0.00019985,2]
[360131067,1746561051225,-450.0,0.00019985,2]
[360131068,1746561051235,-450.0,0.00019985,2]
[360131069,1746561051246,-450.0,0.00019985,2]
[360131070,1746561051258,-5292.02,0.00019985,2]
[360131071,1746561051267,-450.0,0.00019985,2]
[360131072,1746561051277,-450.0,0.00019985,2]
[360131073,1746561051286,-450.0,0.00019985,2]
[360131074,1746561051295,-450.0,0.00019985,2]
[360131075,1746561051305,-530.97,0.00019985,2]
[360131076,1746561051315,-530.97,0.00019985,2]
[360131077,1746561051324,-450.0,0.00019985,2]
[360131078,1746561051334,-450.0,0.00019985,2]
[360131079,1746561051344,-450.0,0.00019985,2]
[360131080,1746561051353,-450.0,0.00019985,2]
[360131081,1746561051363,-573.85,0.00019985,2]
[360131082,1746561051373,-573.85,0.00019985,2]
[360131083,1746561051384,-1522.52,0.00019985,2]
[360131084,1746561051395,-1522.52,0.00019985,2]
[360131085,1746561051409,-450.0,0.00019985,2]
[360131086,1746561051420,-450.0,0.00019985,2]
[360131087,1746561051431,-1753.07,0.00019985,2]
[360131088,1746561051440,-1753.07,0.00019985,2]
[360131089,1746561051450,-936.68,0.00019985,2]
[360131090,1746561051459,-936.68,0.00019985,2]
[360131091,1746561051468,-551.49,0.00019985,2]
[360131092,1746561051478,-450.0,0.00019985,2]
[360131093,1746561051488,-450.0,0.00019985,2]
[360131094,1746561051497,-151.0,0.00019986,2]
[360131095,1746561051507,-151.0,0.00019986,2]
[360131096,1746561051516,-151.0,0.00019986,2]
[360131097,1746561051525,-151.0,0.00019986,2]
[360131098,1746561051535,-151.0,0.00019986,2]
[360131099,1746561051548,-151.0,0.00019986,2]
[360131100,1746561051558,-151.0,0.00019986,2]
[360131101,1746561051567,-155.6,0.00019986,2]
[360131102,1746561051576,-151.0,0.00019986,2]
[360131103,1746561051587,-151.0,0.00019986,2]
[360131104,1746561051597,-915.229573,0.00019986,2]
[360131105,1746561051608,-915.229573,0.00019986,2]
[360131106,1746561051618,-151.0,0.00019986,2]
[360131107,1746561051628,-397.602981,0.00019986,2]
[360131108,1746561051638,-397.602981,0.00019986,2]
[360131109,1746561051647,-151.0,0.00019986,2]
[360131110,1746561051658,-151.0,0.00019986,2]
[360131111,1746561051667,-151.0,0.00019986,2]
[360131112,1746561051677,-152.074473,0.00019986,2]
[360131113,1746561051687,-151.0,0.00019986,2]
[360131114,1746561051697,-151.0,0.00019986,2]
[360131115,1746561051706,-151.0,0.00019986,2]
[360131116,1746561051716,-194.836868,0.00019986,2]
[360131117,1746561051726,-194.836868,0.00019986,2]
[360131118,1746561051735,-439.067352,0.00019986,2]
[360131119,1746561051744,-439.067352,0.00019986,2]
[360131120,1746561051754,-269.347023,0.00019986,2]
[360131121,1746561051764,-269.347023,0.00019986,2]
[360131122,1746561051773,-151.0,0.00019986,2]
[360131123,1746561051783,-151.0,0.00019986,2]
[360131124,1746561051793,-199.249697,0.00019986,2]
[360131125,1746561051803,-199.249697,0.00019986,2]
[360131126,1746561051813,-151.0,0.00019986,2]
[360131127,1746561051822,-241.849428,0.00019986,2]
[360131128,1746561051832,-241.849428,0.00019986,2]
[360131129,1746561051841,-225.360083,0.00019986,2]
[360131130,1746561051850,-225.360083,0.00019986,2]
[360131131,1746561051860,-151.0,0.00019986,2]
[360131132,1746561051870,-159.278177,0.00019986,2]
[360131133,1746561051879,-151.0,0.00019986,2]
[360131134,1746561051889,-151.0,0.00019986,2]
[360131135,1746561051899,-157.133633,0.00019986,2]
[360131136,1746561051909,-170.591363,0.00019986,2]
[360131137,1746561051918,-836.260483,0.00019986,2]
[360131138,1746561051929,-836.260483,0.00019986,2]
[360131139,1746561051939,-184.495297,0.00019986,2]
[360131140,1746561051948,-225.54367,0.00019986,2]
[360131141,1746561051958,-151.0,0.00019986,2]
[360131142,1746561051968,-225.54367,0.00019986,2]
[360131143,1746561051978,-316.658111,0.00019986,2]
[360131144,1746561051987,-316.658111,0.00019986,2]
[360131145,1746561051997,-233.817203,0.00019986,2]
[360131146,1746561052007,-233.817203,0.00019986,2]
[360131147,1746561052016,-151.0,0.00019986,2]